fUSD/lending_fUSD_20240718
["ID","MTS","AMOUNT","RATE_DAILY","PERIOD"]
[332518478,1721287954111,-500.0,0.00022739,2]
[332518479,1721287954122,-838.7,0.00022739,2]
[332518480,1721287954140,-500.0,0.00022739,2]
[332518481,1721287954150,-500.0,0.00022739,2]
[332518482,1721287954161,-500.0,0.00022739,2]
[332518483,1721287954171,-500.0,0.00022739,2]
[332518484,1721287954182,-503.03,0.00022739,2]
[332518485,1721287954192,-500.0,0.00022739,2]
[332518486,1721287954203,-500.0,0.00022739,2]
[332518487,1721287954473,-500.0,0.00022739,2]
[332518488,1721287954514,-500.0,0.00022739,2]
[332518489,1721287954523,-500.0,0.00022739,2]
[332518490,1721287954533,-500.0,0.00022739,2]
[332518491,1721287954542,-500.0,0.00022739,2]
[332518492,1721287954552,-500.0,0.00022739,2]
[332518493,1721287954561,-500.0,0.00022739,2]
[332518494,1721287954571,-500.0,0.00022739,2]
[332518495,1721287954581,-500.0,0.00022739,2]
[332518496,1721287954590,-500.0,0.00022739,2]
[332518497,1721287954600,-500.0,0.00022739,2]
[332518498,1721287954610,-500.0,0.00022739,2]
[332518499,1721287954620,-500.0,0.00022739,2]
[332518500,1721287954634,-500.0,0.00022739,2]
[332518501,1721287954643,-802.6,0.00022739,2]
[332518502,1721287954653,-504.27692149,0.00022739,2]
[332518503,1721287954665,-500.0,0.00022739,2]
[332518504,1721287954674,-780.83,0.00022739,2]
[332518505,1721287954683,-579.37,0.00022739,2]
[332518506,1721287954693,-500.0,0.00022739,2]
[332518507,1721287954703,-781.35,0.00022739,2]
[332518508,1721287954712,-500.0,0.00022739,2]
[332518509,1721287954722,-500.0,0.00022739,2]
[332518510,1721287954732,-724.1,0.00022739,2]
[332518511,1721287954741,-500.0,0.00022739,2]
[332518512,1721287954751,-500.0,0.00022739,2]
[332518513,1721287954761,-500.0,0.00022739,2]
[332518514,1721287954770,-500.0,0.00022739,2]
[332518515,1721287954779,-500.0,0.00022739,2]
[332518516,1721287954789,-568.82,0.00022739,2]
[332518517,1721287954799,-500.0,0.00022739,2]
[332518518,1721287954809,-500.0,0.00022739,2]
[332518519,1721287954818,-500.0,0.00022739,2]
[332518520,1721287954828,-502.89459854,0.00022739,2]
[332518521,1721287954837,-500.0,0.00022739,2]
[332518522,1721287954847,-1287.42,0.00022739,2]
[332518523,1721287954856,-500.0,0.00022739,2]
[332518524,1721287954866,-771.73,0.00022739,2]
[332518525,1721287954876,-500.0,0.00022739,2]
[332518526,1721287954888,-500.0,0.00022739,2]
[332518527,1721287954899,-1353.92,0.00022739,2]
[332518528,1721287954909,-1387.82,0.00022739,2]
[332518529,1721287954919,-282.13870465,0.00022739,2]
[332518530,1721287954929,-500.0,0.00022739,2]
[332518531,1721287954942,-500.0,0.00022739,2]
[332518532,1721287954952,-553.81,0.00022739,2]
[332518533,1721287954962,-500.0,0.00022739,2]
[332518534,1721287954972,-500.0,0.00022739,2]
[332518535,1721287954983,-500.0,0.00022739,2]
[332518536,1721287954993,-500.0,0.00022739,2]
[332518537,1721287955004,-500.0,0.00022739,2]
[332518538,1721287955015,-500.0,0.00022739,2]
[332518539,1721287955025,-500.0,0.00022739,2]
[332518540,1721287955035,-500.0,0.00022739,2]
[332518541,1721287955046,-486.85069545,0.00022739,2]
[332518542,1721287955056,-500.0,0.00022739,2]
[332518543,1721287955065,-500.0,0.00022739,2]
[332518544,1721287955075,-500.0,0.00022739,2]
[332518545,1721287955084,-500.0,0.00022739,2]
[332518546,1721287955094,-500.0,0.00022739,2]
[332518547,1721287955103,-500.0,0.00022739,2]
[332518548,1721287955113,-500.0,0.00022739,2]
[332518549,1721287955122,-500.0,0.00022739,2]
[332518550,1721287955134,-500.0,0.00022739,2]
[332518551,1721287955144,-682.98,0.00022739,2]
[332518552,1721287955154,-911.72,0.00022739,2]
[332518553,1721287955164,-500.0,0.00022739,2]
[332518554,1721287955174,-500.0,0.00022739,2]
[332518555,1721287955184,-972.31,0.00022739,2]
[332518556,1721287955195,-819.38,0.00022739,2]
[332518557,1721287955204,-500.0,0.00022739,2]
[332518558,1721287955214,-500.0,0.00022739,2]
[332518559,1721287955223,-500.0,0.00022739,2]
[332518560,1721287955234,-500.0,0.00022739,2]
[332518561,1721287955243,-500.0,0.00022739,2]
[332518562,1721287955253,-1109.76,0.00022739,2]
[332518563,1721287955262,-500.0,0.00022739,2]
[332518564,1721287955272,-500.0,0.00022739,2]
[332518565,1721287955281,-500.0,0.00022739,2]
[332518566,1721287955291,-500.0,0.00022739,2]
[332518567,1721287955301,-543.66134962,0.00022739,2]
[332518568,1721287955310,-500.0,0.00022739,2]
[332518569,1721287955319,-500.0,0.00022739,2]
[332518570,1721287955329,-500.0,0.00022739,2]
[332518571,1721287955339,-500.0,0.00022739,2]
[332518572,1721287955348,-500.0,0.00022739,2]
[332518573,1721287955357,-836.26,0.00022739,2]
[332518574,1721287955367,-544.15,0.00022739,2]
[332518575,1721287955377,-500.0,0.00022739,2]
[332518576,1721287955387,-642.88693143,0.00022739,2]
[332518577,1721287955397,-500.0,0.00022739,2]
[332518578,1721287955406,-500.0,0.00022739,2]
[332518579,1721287955418,-500.0,0.00022739,2]
[332518580,1721287955430,-659.68,0.00022739,2]
[332518581,1721287955440,-500.0,0.00022739,2]
[332518582,1721287955451,-744.75,0.00022739,2]
[332518583,1721287955462,-500.0,0.00022739,2]
[332518584,1721287955472,-1074.46,0.00022739,2]
[332518585,1721287955482,-918.1,0.00022739,2]
[332518586,1721287955493,-500.0,0.00022739,2]
[332518587,1721287955502,-644.60079382,0.00022739,2]
[332518588,1721287955513,-500.0,0.00022739,2]
[332518589,1721287955523,-500.0,0.00022739,2]
[332518590,1721287955532,-637.37,0.00022739,2]
[332518591,1721287955543,-500.0,0.00022739,2]
[332518592,1721287955553,-500.0,0.00022739,2]
[332518593,1721287955564,-500.0,0.00022739,2]
[332518594,1721287955574,-500.0,0.00022739,2]
[332518595,1721287955584,-941.47,0.00022739,2]
[332518596,1721287955595,-808.27,0.00022739,2]
[332518597,1721287955604,-1715.0,0.00022739,2]
[332518598,1721287955615,-629.59017004,0.00022739,2]
[332518599,1721287955625,-500.0,0.00022739,2]
[332518600,1721287955638,-500.0,0.00022739,2]
[332518601,1721287955648,-500.0,0.00022739,2]
[332518602,1721287955658,-500.0,0.00022739,2]
[332518603,1721287955669,-500.0,0.00022739,2]
[332518604,1721287955678,-702.02,0.00022739,2]
[332518605,1721287955687,-543.92,0.00022739,2]
[332518606,1721287955696,-500.0,0.00022739,2]
[332518607,1721287955708,-500.0,0.00022739,2]
[332518608,1721287955718,-500.0,0.00022739,2]
[332518609,1721287955728,-500.0,0.00022739,2]
[332518610,1721287955737,-500.0,0.00022739,2]
[332518611,1721287955747,-500.0,0.00022739,2]
[332518612,1721287955757,-848.98,0.00022739,2]
[332518613,1721287955766,-500.0,0.00022739,2]
[332518614,1721287955776,-500.0,0.00022739,2]
[332518615,1721287955786,-500.0,0.00022739,2]
[332518616,1721287955796,-500.0,0.00022739,2]
[332518617,1721287955806,-833.62,0.00022739,2]
[332518618,1721287955815,-500.0,0.00022739,2]
[332518619,1721287955825,-500.0,0.00022739,2]
[332518620,1721287955834,-747.03,0.00022739,2]
[332518621,1721287955844,-500.0,0.00022739,2]
[332518622,1721287955853,-694.12,0.00022739,2]
[332518623,1721287955862,-500.0,0.00022739,2]
[332518624,1721287955872,-500.0,0.00022739,2]
[332518625,1721287955884,-500.0,0.00022739,2]
[332518626,1721287955894,-1393.96,0.00022739,2]
[332518627,1721287955903,-923.3,0.00022739,2]
[332518628,1721287955912,-864.51,0.00022739,2]
[332518629,1721287955922,-500.0,0.00022739,2]
[332518630,1721287955931,-874.63,0.00022739,2]
[332518631,1721287955941,-500.0,0.00022739,2]
[332518632,1721287955950,-500.0,0.00022739,2]
[332518633,1721287955960,-572.13,0.00022739,2]
[332518634,1721287955969,-768.44,0.00022739,2]
[332518635,1721287955979,-500.0,0.00022739,2]
[332518636,1721287955989,-919.94,0.00022739,2]
[332518637,1721287955998,-500.0,0.00022739,2]
[332518638,1721287956007,-500.0,0.00022739,2]
[332518639,1721287956017,-500.0,0.00022739,2]
[332518640,1721287956026,-500.0,0.00022739,2]
[332518641,1721287956036,-500.0,0.00022739,2]
[332518642,1721287956045,-500.0,0.00022739,2]
[332518643,1721287956055,-500.0,0.00022739,2]
[332518644,1721287956065,-500.0,0.00022739,2]
[332518645,1721287956074,-500.0,0.00022739,2]
[332518646,1721287956083,-500.0,0.00022739,2]
[332518647,1721287956092,-567.01,0.00022739,2]
[332518648,1721287956102,-500.0,0.00022739,2]
[332518649,1721287956111,-750.97,0.00022739,2]
[332518650,1721287956122,-500.0,0.00022739,2]
[332518651,1721287956134,-500.0,0.00022739,2]
[332518652,1721287956143,-664.81,0.00022739,2]
[332518653,1721287956153,-500.0,0.00022739,2]
[332518654,1721287956164,-453.37650567,0.00022739,2]
[332518655,1721287956174,-500.0,0.00022739,2]
[332518656,1721287956184,-500.0,0.00022739,2]
[332518657,1721287956193,-500.0,0.00022739,2]
[332518658,1721287956202,-207.26998192,0.00022739,2]
[332518659,1721287956211,-500.0,0.00022739,2]
[332518660,1721287956221,-1439.37,0.00022739,2]
[332518661,1721287956232,-500.0,0.00022739,2]
[332518662,1721287956241,-820.24,0.00022739,2]
[332518663,1721287956250,-500.0,0.00022739,2]
[332518664,1721287956261,-500.0,0.00022739,2]
[332518665,1721287956272,-500.0,0.00022739,2]
[332518666,1721287956282,-500.0,0.00022739,2]
[332518667,1721287956291,-659.88,0.00022739,2]
[332518668,1721287956300,-500.0,0.00022739,2]
[332518669,1721287956310,-500.0,0.00022739,2]
[332518670,1721287956320,-675.36,0.00022739,2]
[332518671,1721287956329,-306.64648125,0.00022739,2]
[332518672,1721287956339,-500.0,0.00022739,2]
[332518673,1721287956348,-500.0,0.00022739,2]
[332518674,1721287956357,-1239.37,0.00022739,2]
[332518675,1721287956366,-500.0,0.00022739,2]
[332518676,1721287956375,-500.0,0.00022739,2]
[332518677,1721287956387,-500.0,0.00022739,2]
[332518678,1721287956397,-587.43,0.00022739,2]
[332518679,1721287956406,-500.0,0.00022739,2]
[332518680,1721287956416,-500.0,0.00022739,2]
[332518681,1721287956426,-500.0,0.00022739,2]
[332518682,1721287956436,-500.0,0.00022739,2]
[332518683,1721287956445,-500.0,0.00022739,2]
[332518684,1721287956455,-500.0,0.00022739,2]
[332518685,1721287956464,-500.0,0.00022739,2]
[332518686,1721287956473,-500.0,0.00022739,2]
[332518687,1721287956484,-500.0,0.00022739,2]
[332518688,1721287956494,-500.0,0.00022739,2]
[332518689,1721287956504,-500.0,0.00022739,2]
[332518690,1721287956513,-1037.75,0.00022739,2]
[332518691,1721287956522,-500.0,0.00022739,2]
[332518692,1721287956532,-1312.95,0.00022739,2]
[332518693,1721287956541,-500.0,0.00022739,2]
[332518694,1721287956551,-500.0,0.00022739,2]
[332518695,1721287956560,-1508.18,0.00022739,2]
[332518696,1721287956569,-501.58050538,0.00022739,2]
[332518697,1721287956578,-500.0,0.00022739,2]
[332518698,1721287956587,-759.36,0.00022739,2]
[332518699,1721287956596,-589.69,0.00022739,2]
[332518700,1721287956606,-500.0,0.00022739,2]
[332518701,1721287956617,-500.0,0.00022739,2]
[332518702,1721287956629,-589.59,0.00022739,2]
[332518703,1721287956642,-500.0,0.00022739,2]
[332518704,1721287956652,-415.32190893,0.00022739,2]
[332518705,1721287956662,-500.0,0.00022739,2]
[332518706,1721287956671,-500.0,0.00022739,2]
[332518707,1721287956681,-500.0,0.00022739,2]
[332518708,1721287956690,-500.0,0.00022739,2]
[332518709,1721287956701,-500.0,0.00022739,2]
[332518710,1721287956710,-519.36,0.00022739,2]
[332518711,1721287956720,-500.0,0.00022739,2]
[332518712,1721287956729,-500.0,0.00022739,2]
[332518713,1721287956739,-465.48,0.00022739,2]
[332518714,1721287956748,-627.25129611,0.00022739,2]
[332518715,1721287956758,-500.0,0.00022739,2]
[332518716,1721287956767,-500.0,0.00022739,2]
[332518717,1721287956777,-500.0,0.00022739,2]
[332518718,1721287956787,-167.60870421,0.00022739,2]
[332518719,1721287956797,-500.0,0.00022739,2]
[332518720,1721287956806,-500.0,0.00022739,2]
[332518721,1721287956816,-500.0,0.00022739,2]
[332518722,1721287956826,-1570.3,0.00022739,2]
[332518723,1721287956835,-500.0,0.00022739,2]
[332518724,1721287956845,-500.0,0.00022739,2]
[332518725,1721287956854,-500.0,0.00022739,2]
[332518726,1721287956976,-500.0,0.00022739,2]
[332518727,1721287956988,-500.0,0.00022739,2]
[332518728,1721287956998,-500.0,0.00022739,2]
[332518729,1721287957008,-500.0,0.00022739,2]
[332518730,1721287957018,-500.0,0.00022739,2]
[332518731,1721287957027,-684.5,0.00022739,2]
[332518732,1721287957037,-500.0,0.00022739,2]
[332518733,1721287957046,-500.0,0.00022739,2]
[332518734,1721287957056,-500.0,0.00022739,2]
[332518735,1721287957065,-500.0,0.00022739,2]
[332518736,1721287957075,-500.0,0.00022739,2]
[332518737,1721287957084,-778.25,0.00022739,2]
[332518738,1721287957094,-500.0,0.00022739,2]
[332518739,1721287957103,-1825.46,0.00022739,2]
[332518740,1721287957113,-647.56,0.00022739,2]
[332518741,1721287957122,-500.0,0.00022739,2]
[332518742,1721287957132,-489.27665128,0.00022739,2]
[332518743,1721287957143,-1501.12,0.00022739,2]
[332518744,1721287957153,-500.0,0.00022739,2]
[332518745,1721287957164,-649.76,0.00022739,2]
[332518746,1721287957173,-500.0,0.00022739,2]
[332518747,1721287957182,-500.0,0.00022739,2]
[332518748,1721287957192,-500.0,0.00022739,2]
[332518749,1721287957201,-500.0,0.00022739,2]
[332518750,1721287957210,-500.0,0.00022739,2]
[332518751,1721287957219,-500.0,0.00022739,2]
[332518752,1721287957229,-500.0,0.00022739,2]
[332518753,1721287957239,-698.16,0.00022739,2]
[332518754,1721287957248,-500.0,0.00022739,2]
[332518755,1721287957258,-500.0,0.00022739,2]
[332518756,1721287957267,-500.0,0.00022739,2]
[332518757,1721287957277,-500.0,0.00022739,2]
[332518758,1721287957286,-500.0,0.00022739,2]
[332518759,1721287957295,-500.0,0.00022739,2]
[332518760,1721287957305,-500.0,0.00022739,2]
[332518761,1721287957315,-500.0,0.00022739,2]
[332518762,1721287957324,-500.0,0.00022739,2]
[332518763,1721287957333,-838.21,0.00022739,2]
[332518764,1721287957342,-500.0,0.00022739,2]
[332518765,1721287957351,-500.0,0.00022739,2]
[332518766,1721287957360,-500.0,0.00022739,2]
[332518767,1721287957370,-500.0,0.00022739,2]
[332518768,1721287957379,-500.0,0.00022739,2]
[332518769,1721287957395,-500.0,0.00022739,2]
[332518770,1721287957404,-832.49,0.00022739,2]
[332518771,1721287957414,-500.0,0.00022739,2]
[332518772,1721287957423,-500.0,0.00022739,2]
[332518773,1721287957432,-1002.59,0.00022739,2]
[332518774,1721287957442,-500.0,0.00022739,2]
[332518775,1721287957452,-500.0,0.00022739,2]
[332518776,1721287957461,-500.0,0.00022739,2]
[332518777,1721287957471,-635.85,0.00022739,2]
[332518778,1721287957480,-500.0,0.00022739,2]
[332518779,1721287957490,-500.0,0.00022739,2]
[332518780,1721287957499,-500.0,0.00022739,2]
[332518781,1721287957508,-500.0,0.00022739,2]
[332518782,1721287957518,-500.0,0.00022739,2]
[332518783,1721287957527,-667.65,0.00022739,2]
[332518784,1721287957537,-500.0,0.00022739,2]
[332518785,1721287957546,-500.0,0.00022739,2]
[332518786,1721287957555,-500.0,0.00022739,2]
[332518787,1721287957565,-500.0,0.00022739,2]
[332518788,1721287957574,-500.0,0.00022739,2]
[332518789,1721287957583,-500.0,0.00022739,2]
[332518790,1721287957593,-502.84429808,0.00022739,2]
[332518791,1721287957602,-500.0,0.00022739,2]
[332518792,1721287957611,-500.0,0.00022739,2]
[332518793,1721287957621,-1264.99,0.00022739,2]
[332518794,1721287957638,-500.0,0.00022739,2]
[332518795,1721287957647,-558.12,0.00022739,2]
[332518796,1721287957657,-500.0,0.00022739,2]
[332518797,1721287957667,-500.0,0.00022739,2]
[332518798,1721287957676,-501.61827513,0.00022739,2]
[332518799,1721287957685,-828.72,0.00022739,2]
[332518800,1721287957694,-517.19119711,0.00022739,2]
[332518801,1721287957705,-500.0,0.00022739,2]
[332518802,1721287957716,-500.0,0.00022739,2]
[332518803,1721287957725,-500.0,0.00022739,2]
[332518804,1721287957733,-935.3,0.00022739,2]
[332518805,1721287957742,-825.13,0.00022739,2]
[332518806,1721287957752,-500.0,0.00022739,2]
[332518807,1721287957762,-500.0,0.00022739,2]
[332518808,1721287957772,-500.0,0.00022739,2]
[332518809,1721287957782,-502.48034649,0.00022739,2]
[332518810,1721287957792,-500.0,0.00022739,2]
[332518811,1721287957802,-500.0,0.00022739,2]
[332518812,1721287957811,-533.43736274,0.00022739,2]
[332518813,1721287957821,-500.0,0.00022739,2]
[332518814,1721287957831,-572.09,0.00022739,2]
[332518815,1721287957841,-500.0,0.00022739,2]
[332518816,1721287957850,-500.0,0.00022739,2]
[332518817,1721287957859,-801.73,0.00022739,2]
[332518818,1721287957869,-500.0,0.00022739,2]
[332518819,1721287957879,-829.06,0.00022739,2]
[332518820,1721287957892,-500.0,0.00022739,2]
[332518821,1721287957901,-500.0,0.00022739,2]
[332518822,1721287957910,-500.0,0.00022739,2]
[332518823,1721287957920,-500.0,0.00022739,2]
[332518824,1721287957929,-500.0,0.00022739,2]
[332518825,1721287957938,-500.0,0.00022739,2]
[332518826,1721287957947,-500.0,0.00022739,2]
[332518827,1721287957956,-500.0,0.00022739,2]
[332518828,1721287957965,-500.0,0.00022739,2]
[332518829,1721287957974,-500.0,0.00022739,2]
[332518830,1721287957983,-533.21,0.00022739,2]
[332518831,1721287957993,-1500.37,0.00022739,2]
[332518832,1721287958003,-500.0,0.00022739,2]
[332518833,1721287958014,-993.33,0.00022739,2]
[332518834,1721287958024,-500.0,0.00022739,2]
[332518835,1721287958033,-500.0,0.00022739,2]
[332518836,1721287958043,-500.0,0.00022739,2]
[332518837,1721287958052,-500.0,0.00022739,2]
[332518838,1721287958061,-916.75,0.00022739,2]
[332518839,1721287958071,-500.0,0.00022739,2]
[332518840,1721287958080,-500.0,0.00022739,2]
[332518841,1721287958090,-614.68,0.00022739,2]
[332518842,1721287958099,-515.03692973,0.00022739,2]
[332518843,1721287958109,-500.0,0.00022739,2]
[332518844,1721287958119,-500.0,0.00022739,2]
[332518845,1721287958129,-839.63,0.00022739,2]
[332518846,1721287958142,-500.0,0.00022739,2]
[332518847,1721287958151,-1099.16,0.00022739,2]
[332518848,1721287958161,-2190.92,0.00022739,2]
[332518849,1721287958170,-500.0,0.00022739,2]
[332518850,1721287958180,-500.0,0.00022739,2]
[332518851,1721287958189,-769.89,0.00022739,2]
[332518852,1721287958199,-500.0,0.00022739,2]
[332518853,1721287958208,-500.0,0.00022739,2]
[332518854,1721287958218,-860.39,0.00022739,2]
[332518855,1721287958227,-1387.79,0.00022739,2]
[332518856,1721287958236,-500.0,0.00022739,2]
[332518857,1721287958245,-500.0,0.00022739,2]
[332518858,1721287958254,-500.0,0.00022739,2]
[332518859,1721287958264,-500.0,0.00022739,2]
[332518860,1721287958273,-172.03834769,0.00022739,2]
[332518861,1721287958282,-500.0,0.00022739,2]
[332518862,1721287958291,-621.09,0.00022739,2]
[332518863,1721287958301,-500.0,0.00022739,2]
[332518864,1721287958310,-500.0,0.00022739,2]
[332518865,1721287958320,-2607.0,0.00022739,2]
[332518866,1721287958331,-500.0,0.00022739,2]
[332518867,1721287958340,-500.0,0.00022739,2]
[332518868,1721287958349,-934.95,0.00022739,2]
[332518869,1721287958358,-634.32,0.00022739,2]
[332518870,1721287958367,-1185.83,0.00022739,2]
[332518871,1721287958377,-714.68,0.00022739,2]
[332518872,1721287958389,-500.0,0.00022739,2]
[332518873,1721287958399,-500.0,0.00022739,2]
[332518874,1721287958408,-500.0,0.00022739,2]
[332518875,1721287958417,-706.1,0.00022739,2]
[332518876,1721287958427,-500.0,0.00022739,2]
[332518877,1721287958436,-992.23,0.00022739,2]
[332518878,1721287958445,-500.0,0.00022739,2]
[332518879,1721287958455,-719.06,0.00022739,2]
[332518880,1721287958465,-500.0,0.00022739,2]
[332518881,1721287958474,-500.0,0.00022739,2]
[332518882,1721287958483,-500.0,0.00022739,2]
[332518883,1721287958492,-962.74,0.00022739,2]
[332518884,1721287958501,-879.71,0.00022739,2]
[332518885,1721287958511,-500.0,0.00022739,2]
[332518886,1721287958520,-500.0,0.00022739,2]
[332518887,1721287958531,-4194.17,0.00022739,2]
[332518888,1721287958540,-500.0,0.00022739,2]
[332518889,1721287958550,-500.0,0.00022739,2]
[332518890,1721287958560,-500.0,0.00022739,2]
[332518891,1721287958570,-500.0,0.00022739,2]
[332518892,1721287958580,-500.0,0.00022739,2]
[332518893,1721287958591,-500.0,0.00022739,2]
[332518894,1721287958601,-796.16,0.00022739,2]
[332518895,1721287958611,-500.0,0.00022739,2]
[332518896,1721287958625,-1343.67,0.00022739,2]
[332518897,1721287958636,-500.0,0.00022739,2]
[332518898,1721287958645,-500.0,0.00022739,2]
[332518899,1721287958654,-845.59,0.00022739,2]
[332518900,1721287958665,-500.0,0.00022739,2]
[332518901,1721287958674,-607.98,0.00022739,2]
[332518902,1721287958684,-500.0,0.00022739,2]
[332518903,1721287958694,-884.87,0.00022739,2]
[332518904,1721287958704,-500.0,0.00022739,2]
[332518905,1721287958714,-500.0,0.00022739,2]
[332518906,1721287958723,-500.0,0.00022739,2]
[332518907,1721287958733,-500.0,0.00022739,2]
[332518908,1721287958742,-500.0,0.00022739,2]
[332518909,1721287958751,-563.78,0.00022739,2]
[332518910,1721287958761,-500.0,0.00022739,2]
[332518911,1721287958772,-500.0,0.00022739,2]
[332518912,1721287958781,-664.21,0.00022739,2]
[332518913,1721287958791,-500.0,0.00022739,2]
[332518914,1721287958800,-500.0,0.00022739,2]
[332518915,1721287958809,-619.48,0.00022739,2]
[332518916,1721287958819,-1023.41,0.00022739,2]
[332518917,1721287958828,-4286.57,0.00022739,2]
[332518918,1721287958838,-500.0,0.00022739,2]
[332518919,1721287958847,-759.2,0.00022739,2]
[332518920,1721287958857,-699.13,0.00022739,2]
[332518921,1721287958866,-500.0,0.00022739,2]
[332518922,1721287958875,-500.0,0.00022739,2]
[332518923,1721287958886,-500.0,0.00022739,2]
[332518924,1721287958895,-500.0,0.00022739,2]
[332518925,1721287958905,-500.0,0.00022739,2]
[332518926,1721287958915,-1303.0,0.00022739,2]
[332518927,1721287958925,-664.93,0.00022739,2]
[332518928,1721287958934,-500.0,0.00022739,2]
[332518929,1721287958944,-500.0,0.00022739,2]
[332518930,1721287958953,-779.15,0.00022739,2]
[332518931,1721287958963,-799.99,0.00022739,2]
[332518932,1721287958973,-500.0,0.00022739,2]
[332518933,1721287958983,-705.02,0.00022739,2]
[332518934,1721287958992,-840.9,0.00022739,2]
[332518935,1721287959002,-500.0,0.00022739,2]
[332518936,1721287959011,-500.0,0.00022739,2]
[332518937,1721287959020,-1213.95,0.00022739,2]
[332518938,1721287959030,-500.0,0.00022739,2]
[332518939,1721287959040,-500.0,0.00022739,2]
[332518940,1721287959049,-500.0,0.00022739,2]
[332518941,1721287959059,-500.0,0.00022739,2]
[332518942,1721287959069,-500.0,0.00022739,2]
[332518943,1721287959079,-273.17120999,0.00022739,2]
[332518944,1721287959088,-712.43,0.00022739,2]
[332518945,1721287959098,-500.0,0.00022739,2]
[332518946,1721287959108,-615.07,0.00022739,2]
[332518947,1721287959117,-500.0,0.00022739,2]
[332518948,1721287959127,-640.55,0.00022739,2]
[332518949,1721287959138,-500.0,0.00022739,2]
[332518950,1721287959147,-842.93,0.00022739,2]
[332518951,1721287959158,-500.0,0.00022739,2]
[332518952,1721287959168,-500.0,0.00022739,2]
[332518953,1721287959178,-500.0,0.00022739,2]
[332518954,1721287959189,-500.0,0.00022739,2]
[332518955,1721287959199,-515.65,0.00022739,2]
[332518956,1721287959209,-226.83804162,0.00022739,2]
[332518957,1721287959221,-500.0,0.00022739,2]
[332518958,1721287959231,-348.67728289,0.00022739,2]
[332518959,1721287959242,-500.0,0.00022739,2]
[332518960,1721287959251,-500.0,0.00022739,2]
[332518961,1721287959261,-500.0,0.00022739,2]
[332518962,1721287959270,-964.94,0.00022739,2]
[332518963,1721287959281,-500.0,0.00022739,2]
[332518964,1721287959291,-592.68,0.00022739,2]
[332518965,1721287959301,-6375.98,0.00022739,2]
[332518966,1721287959311,-1083.93,0.00022739,2]
[332518967,1721287959321,-500.0,0.00022739,2]
[332518968,1721287959332,-273.36045533,0.00022739,2]
[332518969,1721287959342,-1037.41,0.00022739,2]
[332518970,1721287959351,-1379.21,0.00022739,2]
[332518971,1721287959361,-500.0,0.00022739,2]
[332518972,1721287959371,-500.0,0.00022739,2]
[332518973,1721287959384,-500.0,0.00022739,2]
[332518974,1721287959394,-500.0,0.00022739,2]
[332518975,1721287959404,-500.0,0.00022739,2]
[332518976,1721287959413,-500.0,0.00022739,2]
[332518977,1721287959422,-559.08,0.00022739,2]